fUSD/lending_fUSD_20260202
["ID","MTS","AMOUNT","RATE_DAILY","PERIOD"]
[404274000,1770022239184,-200.0,0.00013635,2]
[404274001,1770022239196,-500.0,0.00013698,2]
[404274002,1770022239210,-500.0,0.00013698,2]
[404274003,1770022239221,-500.0,0.00013698,2]
[404274004,1770022239232,-500.0,0.00013698,2]
[404274005,1770022239242,-500.0,0.00013698,2]
[404274006,1770022239253,-500.0,0.00013698,2]
[404274007,1770022239266,-500.0,0.00013698,2]
[404274008,1770022239276,-500.0,0.00013698,2]
[404274009,1770022239287,-500.0,0.00013698,2]
[404274010,1770022239297,-500.0,0.00013698,2]
[404274011,1770022239309,-500.0,0.00013698,2]
[404274012,1770022239320,-500.0,0.00013698,2]
[404274013,1770022239335,-500.0,0.00013698,2]
[404274014,1770022239346,-500.0,0.00013698,2]
[404274015,1770022239356,-500.0,0.00013698,2]
[404274016,1770022239367,-500.0,0.00013698,2]
[404274017,1770022239377,-500.0,0.00013698,2]
[404274018,1770022239388,-500.0,0.00013698,2]
[404274019,1770022239399,-500.0,0.00013698,2]
[404274020,1770022239409,-500.0,0.00013698,2]
[404274021,1770022239419,-500.0,0.00013698,2]
[404274022,1770022239429,-500.0,0.00013698,2]
[404274023,1770022239439,-500.0,0.00013698,2]
[404274024,1770022239451,-500.0,0.00013698,2]
[404274025,1770022239461,-500.0,0.00013698,2]
[404274026,1770022239471,-500.0,0.00013698,2]
[404274027,1770022239481,-500.0,0.00013698,2]
[404274028,1770022239491,-500.0,0.00013698,2]
[404274029,1770022239501,-500.0,0.00013698,2]
[404274030,1770022239511,-500.0,0.00013698,2]
[404274031,1770022239523,-500.0,0.00013698,2]
[404274032,1770022239533,-500.0,0.00013698,2]
[404274033,1770022239543,-500.0,0.00013698,2]
[404274034,1770022239553,-500.0,0.00013698,2]
[404274035,1770022239563,-312.31641165,0.00013698,2]
[404274036,1770022239572,-279.17200518,0.00013698,2]
[404274037,1770022239583,-500.0,0.00013698,2]
[404274039,1770022239593,-500.0,0.00013698,2]
[404274040,1770022239603,-500.0,0.00013698,2]
[404274041,1770022239613,-500.0,0.00013698,2]
[404274042,1770022239624,-500.0,0.00013698,2]
[404274043,1770022239634,-500.0,0.00013698,2]
[404274044,1770022239644,-503.94494328,0.00013698,2]
[404274045,1770022239654,-384.73810332,0.00013698,2]
[404274046,1770022239665,-500.0,0.00013698,2]
[404274047,1770022239675,-500.0,0.00013698,2]
[404274048,1770022239684,-500.0,0.00013698,2]
[404274049,1770022239694,-500.0,0.00013698,2]
[404274050,1770022239709,-500.0,0.00013698,2]
[404274051,1770022239719,-500.0,0.00013698,2]
[404274052,1770022239729,-500.0,0.00013698,2]
[404274053,1770022239739,-500.0,0.00013698,2]
[404274054,1770022239749,-463.88353505,0.00013698,2]
[404274055,1770022239758,-500.0,0.00013698,2]
[404274056,1770022239768,-500.0,0.00013698,2]
[404274057,1770022239778,-500.0,0.00013698,2]
[404274058,1770022239788,-500.0,0.00013698,2]
[404274059,1770022239797,-500.0,0.00013698,2]
[404274060,1770022239808,-500.0,0.00013698,2]
[404274061,1770022239818,-500.0,0.00013698,2]
[404274062,1770022239828,-500.0,0.00013698,2]
[404274063,1770022239838,-500.0,0.00013698,2]
[404274064,1770022239848,-500.0,0.00013698,2]
[404274065,1770022239857,-500.0,0.00013698,2]
[404274066,1770022239867,-500.0,0.00013698,2]
[404274067,1770022239878,-533.09335481,0.00013698,2]
[404274068,1770022239892,-500.0,0.00013698,2]
[404274069,1770022239902,-500.0,0.00013698,2]
[404274070,1770022239919,-500.0,0.00013698,2]
[404274071,1770022239929,-500.0,0.00013698,2]
[404274072,1770022239939,-500.0,0.00013698,2]
[404274073,1770022239950,-500.0,0.00013698,2]
[404274074,1770022239959,-500.0,0.00013698,2]
[404274075,1770022239969,-500.0,0.00013698,2]
[404274076,1770022239979,-500.0,0.00013698,2]
[404274077,1770022239989,-500.0,0.00013698,2]
[404274078,1770022239999,-500.0,0.00013698,2]
[404274079,1770022240008,-500.0,0.00013698,2]
[404274080,1770022240019,-500.0,0.00013698,2]
[404274081,1770022240029,-500.0,0.00013698,2]
[404274082,1770022240039,-471.30540648,0.00013698,2]
[404274083,1770022240049,-500.0,0.00013698,2]
[404274084,1770022240058,-500.0,0.00013698,2]
[404274085,1770022240068,-448.17762938,0.00013698,2]
[404274086,1770022240079,-500.0,0.00013698,2]
[404274087,1770022240089,-500.0,0.00013698,2]
[404274088,1770022240099,-500.0,0.00013698,2]
[404274089,1770022240109,-500.0,0.00013698,2]
[404274090,1770022240119,-500.0,0.00013698,2]
[404274091,1770022240128,-500.0,0.00013698,2]
[404274092,1770022240138,-415.78505881,0.00013698,2]
[404274093,1770022240148,-500.0,0.00013698,2]
[404274094,1770022240158,-500.0,0.00013698,2]
[404274096,1770022240168,-500.0,0.00013698,2]
[404274099,1770022240178,-500.0,0.00013698,2]
[404274101,1770022240188,-500.0,0.00013698,2]
[404274102,1770022240197,-500.0,0.00013698,2]
[404274105,1770022240209,-500.0,0.00013698,2]
[404274107,1770022240219,-500.0,0.00013698,2]
[404274108,1770022240230,-500.0,0.00013698,2]
[404274111,1770022240239,-500.0,0.00013698,2]
[404274113,1770022240249,-500.0,0.00013698,2]
[404274114,1770022240258,-2800.26,0.00013699,2]
[404274117,1770022240272,-200.0,0.00013699,2]
[404274118,1770022240281,-500.0,0.0001375,2]
[404274121,1770022240290,-200.0,0.00013771,2]
[404274123,1770022240300,-786.43215102,0.00013794,2]
[404274125,1770022240310,-200.0,0.00013909,2]
[404274127,1770022240319,-500.0,0.00013939,2]
[404274130,1770022240328,-10141.47403134,0.00013964,2]
[404274147,1770022240477,9905.60896342,0.00010816,2]
[404274150,1770022240503,10000.01,0.00010816,2]
[404274154,1770022240528,10000.01,0.00010816,2]
[404274158,1770022240553,10000.01,0.00010816,2]
[404274162,1770022240578,10000.01,0.00010816,2]
[404274166,1770022240605,10000.01,0.00010816,2]
[404274170,1770022240630,10000.01,0.00010816,2]
[404274175,1770022240670,-1158.63,0.00010816,2]
[404274177,1770022240681,-394.07870975,0.00010816,2]
[404274184,1770022241140,-1.7e-07,0.00010816,2]
[404274185,1770022241820,-2828541.62232666,0.00010816,2]
[404274186,1770022241829,-658.69214713,0.00010917,2]
[404274187,1770022241838,-26125.44139021,0.00013964,2]
[404274188,1770022241848,-500.0,0.00013973,2]
[404274189,1770022241858,-500.0,0.00013973,2]
[404274190,1770022241867,-177.72668829,0.00013973,2]
[404274191,1770022241876,-501.3792678,0.00013973,2]
[404274192,1770022241886,-500.44335108,0.00013973,2]
[404274193,1770022241895,-500.7756559,0.00013973,2]
[404274194,1770022241904,-501.3681504,0.00013973,2]
[404274195,1770022241914,-500.88887474,0.00013973,2]
[404274196,1770022241923,-500.0,0.00013973,2]
[404274197,1770022241932,-500.0,0.00013973,2]
[404274198,1770022241941,-501.73498825,0.00013973,2]
[404274199,1770022241951,-503.39541784,0.00013973,2]
[404274200,1770022241960,-500.0,0.00013973,2]
[404274201,1770022241970,-170.70108958,0.00013973,2]
[404274202,1770022241979,-169.68447442,0.00013973,2]
[404274203,1770022241989,-217.67941742,0.00013973,2]
[404274204,1770022241998,-500.0,0.00013973,2]
[404274205,1770022242008,-500.0,0.00013973,2]
[404274206,1770022242017,-500.0,0.00013973,2]
[404274207,1770022242026,-500.0,0.00013973,2]
[404274208,1770022242035,-200.0,0.00014048,2]
[404274209,1770022242044,-287.54134169,0.00014054,2]
[404274210,1770022242054,-151.0,0.00014229,2]
[404274211,1770022242063,-265.87464603,0.00014229,2]
[404274212,1770022242073,-500.0,0.00014298,2]
[404274213,1770022242083,-166.66,0.00014324,2]
[404274214,1770022242093,-364.26275163,0.00014358,2]
[404274215,1770022242102,-250.0,0.00014423,2]
[404274216,1770022242111,-1000.0,0.00014437,2]
[404274217,1770022242120,-463.7080185,0.00014521,2]
[404274218,1770022242130,-1000.0,0.00014521,2]
[404274219,1770022242139,-1002.39079139,0.00014521,2]
[404274220,1770022242148,-619.13707331,0.00014521,2]
[404274221,1770022242158,-1000.0,0.00014521,2]
[404274222,1770022242168,-3292.0,0.00014528,2]
[404274223,1770022242177,-1503.0,0.00014537,2]
[404274224,1770022242187,-599.51832637,0.00014537,2]
[404274225,1770022242196,-1503.0,0.00014537,2]
[404274226,1770022242208,-1503.0,0.00014537,2]
[404274227,1770022242217,-1503.0,0.00014537,2]
[404274228,1770022242226,-1503.0,0.00014537,2]
[404274229,1770022242235,-1503.0,0.00014537,2]
[404274230,1770022242245,-1503.0,0.00014537,2]
[404274231,1770022242254,-1503.0,0.00014537,2]
[404274232,1770022242265,-1503.0,0.00014537,2]
[404274233,1770022242274,-1503.0,0.00014537,2]
[404274234,1770022242283,-1514.04051468,0.00014537,2]
[404274235,1770022242292,-166.66,0.00014625,2]
[404274236,1770022242302,-363.03594063,0.00014662,2]
[404274237,1770022242312,-958.05759112,0.00014662,2]
[404274238,1770022242321,-1690.12715293,0.00014662,2]
[404274240,1770022242330,-36266.91542155,0.00014752,2]
[404274241,1770022242341,-500.0,0.00014767,2]
[404274243,1770022242351,-8553.43,0.00014806,2]
[404274245,1770022242360,-5146.82,0.0001481,2]
[404274246,1770022242370,-500.0,0.00014846,2]
[404274247,1770022242378,-166.66,0.00014927,2]
[404274248,1770022242388,-1600.0,0.00015057,2]
[404274249,1770022242397,-777.64620196,0.00015068,2]
[404274250,1770022242406,-298.36118205,0.00015068,2]
[404274251,1770022242415,-322.6107,0.00015093,2]
[404274252,1770022242424,-250.0,0.00015093,2]
[404274253,1770022242433,-250.0,0.00015093,2]
[404274254,1770022242442,-250.0,0.00015093,2]
[404274255,1770022242453,-250.0,0.00015093,2]
[404274256,1770022242462,-209.40437684,0.00015093,2]
[404274257,1770022242471,-250.0,0.00015093,2]
[404274258,1770022242479,-250.0,0.00015093,2]
[404274259,1770022242489,-500.0,0.00015093,2]
[404274260,1770022242497,-250.0,0.00015093,2]
[404274261,1770022242506,-250.0,0.00015093,2]
[404274262,1770022242517,-500.0,0.00015093,2]
[404274263,1770022242527,-250.0,0.00015093,2]
[404274264,1770022242536,-250.0,0.00015093,2]
[404274265,1770022242546,-500.0,0.00015093,2]
[404274266,1770022242555,-250.0,0.00015093,2]
[404274267,1770022242564,-250.0,0.00015093,2]
[404274268,1770022242574,-500.0,0.00015093,2]
[404274269,1770022242584,-250.0,0.00015093,2]
[404274270,1770022242593,-250.0,0.00015093,2]
[404274271,1770022242603,-500.0,0.00015093,2]
[404274272,1770022242612,-250.0,0.00015093,2]
[404274273,1770022242621,-250.0,0.00015093,2]
[404274274,1770022242630,-500.0,0.00015093,2]
[404274275,1770022242639,-250.0,0.00015093,2]
[404274276,1770022242650,-250.0,0.00015093,2]
[404274277,1770022242659,-500.0,0.00015093,2]
[404274278,1770022242669,-250.0,0.00015093,2]
[404274279,1770022242678,-250.0,0.00015093,2]
[404274280,1770022242686,-500.0,0.00015093,2]
[404274281,1770022242697,-250.0,0.00015093,2]
[404274282,1770022242710,-500.0,0.00015093,2]
[404274283,1770022242719,-250.0,0.00015093,2]
[404274284,1770022242728,-500.0,0.00015093,2]
[404274285,1770022242737,-250.0,0.00015093,2]
[404274286,1770022242746,-578.20924308,0.00015093,2]
[404274287,1770022242756,-500.0,0.00015093,2]
[404274288,1770022242765,-250.0,0.00015093,2]
[404274289,1770022242775,-500.0,0.00015093,2]
[404274290,1770022242784,-500.0,0.00015093,2]
[404274291,1770022242793,-277.35679052,0.00015093,2]
[404274292,1770022242803,-500.0,0.00015093,2]
[404274293,1770022242812,-500.0,0.00015093,2]
[404274294,1770022242822,-500.0,0.00015093,2]
[404274295,1770022242832,-209.40437684,0.00015093,2]
[404274296,1770022242842,-500.0,0.00015093,2]
[404274297,1770022242852,-500.0,0.00015093,2]
[404274298,1770022242863,-174.61919141,0.00015093,2]
[404274299,1770022242875,-500.0,0.00015093,2]
[404274300,1770022242884,-500.0,0.00015093,2]
[404274301,1770022242893,-151.0,0.00015093,2]
[404274302,1770022242903,-500.0,0.00015093,2]
[404274303,1770022242912,-500.0,0.00015093,2]
[404274304,1770022242921,-500.0,0.00015093,2]
[404274305,1770022242930,-859.80605061,0.00015093,2]
[404274306,1770022242942,-500.0,0.00015093,2]
[404274307,1770022242951,-232.68774879,0.00015093,2]
[404274308,1770022242962,-209.40437684,0.00015093,2]
[404274309,1770022242972,-250.0,0.00015093,2]
[404274310,1770022242981,-500.0,0.00015093,2]
[404274311,1770022242990,-250.0,0.00015093,2]
[404274312,1770022242999,-500.0,0.00015093,2]
[404274313,1770022243009,-250.0,0.00015093,2]
[404274314,1770022243019,-250.0,0.00015093,2]
[404274315,1770022243029,-250.0,0.00015093,2]
[404274316,1770022243040,-250.0,0.00015093,2]
[404274317,1770022243049,-250.0,0.00015093,2]
[404274318,1770022243059,-250.0,0.00015093,2]
[404274319,1770022243068,-250.0,0.00015093,2]
[404274320,1770022243078,-250.0,0.00015093,2]
[404274321,1770022243087,-250.0,0.00015093,2]
[404274322,1770022243096,-250.0,0.00015093,2]
[404274323,1770022243106,-250.0,0.00015093,2]
[404274324,1770022243115,-250.0,0.00015093,2]
[404274326,1770022243124,-250.0,0.00015093,2]
[404274328,1770022243134,-250.0,0.00015093,2]
[404274330,1770022243143,-250.0,0.00015093,2]
[404274332,1770022243153,-250.0,0.00015093,2]
[404274333,1770022243163,-250.0,0.00015093,2]
[404274335,1770022243172,-250.0,0.00015093,2]
[404274336,1770022243181,-250.0,0.00015093,2]
[404274337,1770022243191,-500.0,0.00015093,2]
[404274338,1770022243200,-500.0,0.00015093,2]
[404274339,1770022243212,-500.0,0.00015093,2]
[404274340,1770022243221,-500.0,0.00015093,2]
[404274341,1770022243231,-500.0,0.00015093,2]
[404274342,1770022243240,-500.0,0.00015093,2]
[404274343,1770022243250,-500.0,0.00015093,2]
[404274344,1770022243259,-500.0,0.00015093,2]
[404274345,1770022243274,-1428.38747117,0.00015093,2]
[404274346,1770022243283,-500.0,0.00015093,2]
[404274347,1770022243292,-500.0,0.00015093,2]
[404274348,1770022243302,-500.0,0.00015093,2]
[404274349,1770022243312,-721.12765535,0.00015093,2]
[404274350,1770022243321,-217.15233878,0.00015148,2]
[404274351,1770022243330,-225.18697532,0.00015203,2]
[404274352,1770022243342,-166.66,0.00015229,2]
[404274353,1770022243351,-233.51889341,0.00015258,2]
[404274354,1770022243361,-242.15909246,0.00015313,2]
[404274355,1770022243370,-500.0,0.0001535,2]
[404274356,1770022243379,-251.11897888,0.00015368,2]
[404274357,1770022243388,-500.0,0.00015394,2]
[404274358,1770022243397,-260.4103811,0.00015423,2]
[404274359,1770022243407,-500.0,0.00015473,2]
[404274360,1770022243416,-500.0,0.00015473,2]
[404274361,1770022243425,-501.94112039,0.00015473,2]
[404274362,1770022243434,-500.0,0.00015473,2]
[404274363,1770022243443,-500.0,0.00015473,2]
[404274364,1770022243454,-500.0,0.00015473,2]
[404274365,1770022243463,-501.09302375,0.00015473,2]
[404274366,1770022243472,-500.0,0.00015473,2]
[404274367,1770022243481,-500.0,0.00015473,2]
[404274368,1770022243491,-500.0,0.00015473,2]
[404274369,1770022243500,-502.28798495,0.00015473,2]
[404274370,1770022243509,-500.0,0.00015473,2]
[404274371,1770022243518,-500.0,0.00015473,2]
[404274372,1770022243527,-500.0,0.00015473,2]
[404274373,1770022243536,-500.0,0.00015473,2]
[404274374,1770022243545,-500.0,0.00015473,2]
[404274375,1770022243554,-500.0,0.00015473,2]
[404274376,1770022243564,-500.0,0.00015473,2]
[404274377,1770022243572,-500.0,0.00015473,2]
[404274378,1770022243580,-500.0,0.00015473,2]
[404274379,1770022243589,-500.0,0.00015473,2]
[404274380,1770022243601,-500.0,0.00015473,2]
[404274381,1770022243610,-500.0,0.00015473,2]
[404274382,1770022243619,-500.0,0.00015473,2]
[404274383,1770022243628,-500.0,0.00015473,2]
[404274384,1770022243637,-500.0,0.00015473,2]
[404274385,1770022243646,-586.45296103,0.00015473,2]
[404274386,1770022243655,-500.62937167,0.00015473,2]
[404274387,1770022243665,-500.0,0.00015473,2]
[404274388,1770022243673,-500.0,0.00015473,2]
[404274389,1770022243683,-501.89927416,0.00015473,2]
[404274390,1770022243692,-291.61164288,0.00015473,2]
[404274391,1770022243701,-500.0,0.00015473,2]
[404274392,1770022243711,-501.08336444,0.00015473,2]
[404274393,1770022243720,-500.0,0.00015473,2]
[404274394,1770022243729,-500.0,0.00015473,2]
[404274395,1770022243738,-500.0,0.00015473,2]
[404274396,1770022243747,-157.58038737,0.00015473,2]
[404274397,1770022243756,-500.0,0.00015473,2]
[404274398,1770022243766,-500.0,0.00015473,2]
[404274399,1770022243775,-500.0,0.00015473,2]
[404274400,1770022243784,-500.0,0.00015473,2]
[404274401,1770022243795,-500.0,0.00015473,2]
[404274402,1770022243805,-500.0,0.00015473,2]
[404274403,1770022243814,-500.0,0.00015473,2]
[404274404,1770022243824,-500.0,0.00015473,2]
[404274405,1770022243834,-500.0,0.00015473,2]
[404274406,1770022243843,-500.0,0.00015473,2]
[404274407,1770022243853,-270.0455652,0.00015478,2]
[404274408,1770022243863,-166.66,0.0001553,2]
[404274409,1770022243872,-280.03725112,0.00015533,2]
[404274410,1770022243881,-36266.91542155,0.00015539,2]
[404274411,1770022243891,-290.39862941,0.00015588,2]
[404274412,1770022243901,-217.15233878,0.00015641,2]
[404274413,1770022243911,-168.90333538,0.00015641,2]
[404274414,1770022243921,-217.15233878,0.00015641,2]
[404274415,1770022243931,-181.08010149,0.00015641,2]
[404274416,1770022243941,-151.49674582,0.00015641,2]
[404274417,1770022243950,-891.61887448,0.00015641,2]
[404274418,1770022243963,-1481.23780761,0.00015641,2]
[404274419,1770022243972,-301.1433787,0.00015643,2]
[404274420,1770022243982,-1000.0,0.0001575,2]
[404274421,1770022243991,-166.66,0.00015832,2]
[404274422,1770022244001,-500.0,0.00015942,2]
[404274423,1770022244011,-284.56,0.00015951,2]
[404274424,1770022244020,-3992.56342833,0.0001596,2]
[404274425,1770022244030,-3949.0,0.0001598,2]
[404274426,1770022244039,-500.0,0.00015999,2]
[404274427,1770022244048,-500.0,0.00015999,2]
[404274428,1770022244058,-500.0,0.00015999,2]
[404274429,1770022244067,-500.0,0.00015999,2]
[404274430,1770022244076,-500.0,0.00015999,2]
[404274431,1770022244086,-305.59094054,0.00015999,2]
[404274432,1770022244095,-1000.0,0.00016021,2]
[404274433,1770022244104,-503.27979337,0.00016021,2]
[404274434,1770022244113,-1000.0,0.00016021,2]
[404274436,1770022244123,-1000.0,0.00016021,2]
[404274437,1770022244132,-1004.30163313,0.00016021,2]
[404274438,1770022244141,-1000.0,0.00016021,2]
[404274439,1770022244150,-1018.80564021,0.00016021,2]
[404274440,1770022244159,-1000.0,0.00016021,2]
[404274441,1770022244168,-503.91068608,0.00016021,2]
[404274442,1770022244177,-399.10712823,0.00016021,2]
[404274443,1770022244186,-1000.0,0.00016021,2]
[404274444,1770022244196,-1000.0,0.00016021,2]
[404274445,1770022244205,-1000.0,0.00016021,2]
[404274446,1770022244214,-1000.0,0.00016021,2]
[404274447,1770022244223,-1000.0,0.00016021,2]
[404274448,1770022244233,-740.83933027,0.00016021,2]
[404274449,1770022244242,-1005.38162593,0.00016021,2]
[404274450,1770022244251,-1000.0,0.00016021,2]
[404274451,1770022244261,-1000.0,0.00016021,2]
[404274452,1770022244273,-1000.0,0.00016021,2]
[404274453,1770022244282,-1000.0,0.00016021,2]
[404274454,1770022244291,-1005.45817911,0.00016021,2]
[404274455,1770022244300,-1000.0,0.00016021,2]
[404274456,1770022244310,-1000.0,0.00016021,2]
[404274457,1770022244319,-1000.0,0.00016021,2]
[404274458,1770022244329,-1000.0,0.00016021,2]
[404274459,1770022244340,-1000.0,0.00016021,2]
[404274460,1770022244351,-1000.0,0.00016021,2]
[404274461,1770022244360,-1003.56149344,0.00016021,2]
[404274462,1770022244370,-1000.0,0.00016021,2]
[404274463,1770022244379,-1000.0,0.00016021,2]
[404274464,1770022244388,-1000.0,0.00016021,2]
[404274465,1770022244398,-1000.0,0.00016021,2]
[404274466,1770022244408,-487.31307274,0.00016021,2]
[404274467,1770022244417,-761.27528148,0.00016021,2]
[404274468,1770022244426,-1000.0,0.00016021,2]
[404274469,1770022244436,-159.99318318,0.00016114,2]
[404274470,1770022244444,-3412.42,0.00016116,2]
[404274471,1770022244455,-364.26275163,0.00016129,2]
[404274472,1770022244464,-225.18697532,0.00016189,2]
[404274473,1770022244473,-225.18697532,0.00016189,2]
[404274474,1770022244482,-187.78006525,0.00016189,2]
[404274475,1770022244491,-924.60877284,0.00016189,2]
[404274476,1770022244502,-1536.04360649,0.00016189,2]
[404274477,1770022244511,-150.0,0.000162,2]
[404274478,1770022244520,-150.0,0.00016222,2]
[404274479,1770022244529,-900.0,0.00016224,2]
[404274480,1770022244538,-150.0,0.00016244,2]
[404274481,1770022244547,-164.64,0.00016253,2]
[404274482,1770022244557,-150.0,0.00016266,2]
[404274483,1770022244567,-153.85,0.0001627,2]
[404274484,1770022244576,-305.66548204,0.00016275,2]
[404274485,1770022244584,-150.0,0.00016288,2]
[404274486,1770022244594,-150.0,0.0001631,2]
[404274487,1770022244603,-36266.91542155,0.00016326,2]
[404274488,1770022244612,-150.0,0.00016332,2]
[404274489,1770022244621,-150.0,0.00016354,2]
[404274490,1770022244631,-150.0,0.00016376,2]
[404274491,1770022244640,-702.32131293,0.00016391,2]
[404274492,1770022244649,-150.0,0.00016398,2]
[404274493,1770022244658,-163.0,0.000164,2]
[404274494,1770022244667,-163.0,0.000164,2]
[404274495,1770022244677,-163.0,0.000164,2]
[404274496,1770022244686,-163.0,0.000164,2]
[404274497,1770022244696,-2835.0,0.000164,2]
[404274498,1770022244707,-150.0,0.0001642,2]
[404274499,1770022244716,-1872.11781497,0.00016438,2]
[404274500,1770022244726,-500.0,0.00016438,2]
[404274501,1770022244735,-583.52076571,0.00016438,2]
[404274503,1770022244744,-800.78453244,0.00016438,2]
[404274504,1770022244753,-250.55733734,0.00016438,2]
[404274505,1770022244762,-150.0,0.00016441,2]
[404274506,1770022244771,-334.5472959,0.00016462,2]
[404274507,1770022244779,-150.0,0.00016463,2]
[404274508,1770022244788,-150.0,0.00016485,2]
[404274510,1770022244798,-500.0,0.0001649,2]
[404274512,1770022244807,-150.0,0.00016507,2]
[404274514,1770022244815,-150.0,0.00016529,2]
[404274516,1770022244825,-189.6964064,0.00016537,2]
[404274519,1770022244835,-150.0,0.00016551,2]
[404274521,1770022244844,-1500.0,0.00016568,2]
[404274523,1770022244853,-1500.0,0.00016568,2]
[404274524,1770022244862,-1500.0,0.00016568,2]
[404274526,1770022244872,-1500.0,0.00016568,2]
[404274527,1770022244881,-1500.0,0.00016568,2]
[404274528,1770022244890,-545.1454494,0.00016568,2]
[404274529,1770022244899,-345.31167706,0.00016568,2]
[404274530,1770022244908,-1500.0,0.00016568,2]
[404274531,1770022244918,-505.24936027,0.00016568,2]
[404274532,1770022244927,-505.54193795,0.00016568,2]
[404274533,1770022244936,-165.40489721,0.00016568,2]
[404274534,1770022244945,-1315.28060531,0.00016568,2]
[404274535,1770022244954,-1500.0,0.00016568,2]
[404274536,1770022244963,-1500.0,0.00016568,2]
[404274537,1770022244973,-1500.0,0.00016568,2]
[404274538,1770022244982,-504.6853335,0.00016568,2]
[404274539,1770022244991,-1500.0,0.00016568,2]
[404274540,1770022245000,-1458.07275487,0.00016568,2]
[404274541,1770022245009,-619.84098311,0.00016568,2]
[404274542,1770022245019,-624.86514765,0.00016568,2]
[404274543,1770022245029,-1500.0,0.00016568,2]
[404274544,1770022245040,-1500.0,0.00016568,2]
[404274545,1770022245050,-1500.0,0.00016568,2]
[404274546,1770022245060,-1500.0,0.00016568,2]
[404274547,1770022245070,-276.88278142,0.00016568,2]
[404274548,1770022245079,-150.0,0.00016573,2]
[404274549,1770022245089,-150.0,0.00016595,2]
[404274550,1770022245098,-150.0,0.00016617,2]
[404274551,1770022245107,-150.0,0.00016639,2]
[404274552,1770022245117,-150.0,0.00016661,2]
[404274553,1770022245131,-150.0,0.00016683,2]
[404274554,1770022245141,-150.0,0.00016705,2]
[404274555,1770022245150,-500.0,0.0001672,2]
[404274556,1770022245160,-2835.0,0.0001672,2]
[404274557,1770022245169,-163.0,0.0001672,2]
[404274558,1770022245179,-839.0,0.0001672,2]
[404274559,1770022245188,-150.0,0.00016727,2]
[404274560,1770022245199,-159.99318318,0.00016734,2]
[404274561,1770022245213,-233.51889341,0.00016737,2]
[404274562,1770022245222,-233.51889341,0.00016737,2]
[404274563,1770022245231,-194.72792766,0.00016737,2]
[404274564,1770022245240,-958.81929743,0.00016737,2]
[404274565,1770022245250,-1592.87721993,0.00016737,2]
[404274566,1770022245259,-150.0,0.00016749,2]
[404274567,1770022245270,-500.0,0.00016767,2]
[404274568,1770022245280,-150.0,0.00016771,2]
[404274569,1770022245292,-150.0,0.00016793,2]
[404274570,1770022245301,-2844.0,0.000168,2]
[404274571,1770022245312,-150.0,0.00016815,2]
[404274573,1770022245322,-500.0,0.00016822,2]
[404274574,1770022245332,-150.0,0.00016837,2]
[404274575,1770022245343,-150.0,0.00016859,2]
[404274576,1770022245356,-150.0,0.0001688,2]
[404274577,1770022245366,-150.0,0.00016902,2]
[404274578,1770022245376,-150.0,0.00016924,2]
[404274579,1770022245385,-1600.0,0.00016939,2]
[404274580,1770022245395,-150.0,0.00016946,2]
[404274581,1770022245406,-10091.57601831,0.00016968,2]
[404274582,1770022245416,-150.0,0.00016968,2]
[404274583,1770022245426,-284.56,0.00016976,2]